[Event "Titled Tuesday Blitz August 09 Early 2022"]
[White "Molina, Roberto Junio Brito"]
[Black "Pinheiro, Iung Alicio de O."]
[WhiteFideId "2109450"]
[BlackFideId "2104350"]
[WhiteElo "2810"]
[BlackElo "2650"]
[Result "1-0"]
[Round "06"]
[TimeControl "180+1"]
[Date "2022.08.09"]
[WhiteClock "0:00:21"]
[BlackClock "0:00:27"]

1. d4 {[%clk 0:03:00]}  Nf6 {[%clk 0:02:59]} 2. c4 {[%clk 0:03:00]}  g6 {[%clk 0:02:59]} 3. Nc3 {[%clk 0:03:00]}  d5 {[%clk 0:02:59]} 4. Nf3 {[%clk 0:02:59]}  Bg7 {[%clk 0:02:59]} 5. Qb3 {[%clk 0:02:59]}  dxc4 {[%clk 0:02:59]} 6. Qxc4 {[%clk 0:03:00]}  O-O {[%clk 0:02:59]} 7. e4 {[%clk 0:03:00]}  Nc6 {[%clk 0:02:56]} 8. Be3 {[%clk 0:02:55]}  Bg4 {[%clk 0:02:53]} 9. Be2 {[%clk 0:02:52]}  Bxf3 {[%clk 0:02:42]} 10. Bxf3 {[%clk 0:02:44]}  e5 {[%clk 0:02:42]} 11. d5 {[%clk 0:02:44]}  Nd4 {[%clk 0:02:39]} 12. Bd1 {[%clk 0:02:43]}  c6 {[%clk 0:02:36]} 13. dxc6 {[%clk 0:02:42]}  bxc6 {[%clk 0:02:19]} 14. O-O {[%clk 0:02:41]}  Rb8 {[%clk 0:02:16]} 15. b3 {[%clk 0:02:39]}  Qa5 {[%clk 0:02:12]} 16. a3 {[%clk 0:02:23]}  Rfd8 {[%clk 0:02:02]} 17. b4 {[%clk 0:02:23]}  Qc7 {[%clk 0:02:00]} 18. Rc1 {[%clk 0:02:17]}  Qe7 {[%clk 0:01:58]} 19. f3 {[%clk 0:02:15]}  Nh5 {[%clk 0:01:54]} 20. Na4 {[%clk 0:02:07]}  Bf6 {[%clk 0:01:53]} 21. Qc5 {[%clk 0:01:46]}  Qe6 {[%clk 0:01:42]} 22. Rf2 {[%clk 0:01:40]}  Nf4 {[%clk 0:01:41]} 23. Rd2 {[%clk 0:01:37]}  Be7 {[%clk 0:01:28]} 24. Qc4 {[%clk 0:01:33]}  Qf6 {[%clk 0:01:25]} 25. g3 {[%clk 0:01:27]}  Nfe6 {[%clk 0:01:16]} 26. Kg2 {[%clk 0:01:26]}  h5 {[%clk 0:01:14]} 27. h4 {[%clk 0:01:24]}  g5 {[%clk 0:01:09]} 28. hxg5 {[%clk 0:01:20]}  Nxg5 {[%clk 0:01:09]} 29. Qf1 {[%clk 0:01:18]}  h4 {[%clk 0:01:07]} 30. Qf2 {[%clk 0:01:06]}  Nge6 {[%clk 0:01:05]} 31. f4 {[%clk 0:01:01]}  hxg3 {[%clk 0:00:55]} 32. Qxg3+ {[%clk 0:01:01]}  Kf8 {[%clk 0:00:55]} 33. fxe5 {[%clk 0:00:55]}  Qh4 {[%clk 0:00:48]} 34. Qxh4 {[%clk 0:00:52]}  Bxh4 {[%clk 0:00:49]} 35. Bg4 {[%clk 0:00:45]}  Bg5 {[%clk 0:00:47]} 36. Bxg5 {[%clk 0:00:40]}  Nxg5 {[%clk 0:00:47]} 37. Rc4 {[%clk 0:00:35]}  Nb5 {[%clk 0:00:44]} 38. Re2 {[%clk 0:00:31]}  Nd4 {[%clk 0:00:39]} 39. Re3 {[%clk 0:00:28]}  Ke7 {[%clk 0:00:38]} 40. Nc5 {[%clk 0:00:27]}  a5 {[%clk 0:00:37]} 41. bxa5 {[%clk 0:00:24]}  Rb2+ {[%clk 0:00:37]} 42. Kg3 {[%clk 0:00:24]}  Nge6 {[%clk 0:00:34]} 43. Nxe6 {[%clk 0:00:22]}  fxe6 {[%clk 0:00:32]} 44. Rd3 {[%clk 0:00:22]}  Nf5+ {[%clk 0:00:27]} 45. exf5 {[%clk 0:00:22]}  Rd4 {[%clk 0:00:27]} 46. Rcxd4 {[%clk 0:00:21]} 1-0


[Site "https://www.chess.com"]

[Event "Titled Tuesday Blitz August 09 Early 2022"]
[White "Najdin, Danil"]
[Black "Kostina, Nadezhda"]
[WhiteFideId "4172426"]
[BlackFideId "4195876"]
[WhiteElo "2240"]
[BlackElo "1980"]
[Result "0-1"]
[Round "06"]
[TimeControl "180+1"]
[Date "2022.08.09"]
[WhiteClock "0:00:49"]
[BlackClock "0:00:38"]

1. Nf3 {[%clk 0:03:00]}  d5 {[%clk 0:02:58]} 2. g3 {[%clk 0:02:59]}  Nf6 {[%clk 0:02:58]} 3. Bg2 {[%clk 0:02:58]}  c5 {[%clk 0:02:56]} 4. O-O {[%clk 0:02:57]}  Nc6 {[%clk 0:02:56]} 5. d3 {[%clk 0:02:55]}  g6 {[%clk 0:02:56]} 6. c4 {[%clk 0:02:51]}  Bg7 {[%clk 0:02:50]} 7. Nc3 {[%clk 0:02:49]}  O-O {[%clk 0:02:49]} 8. cxd5 {[%clk 0:02:12]}  Nxd5 {[%clk 0:02:48]} 9. Nxd5 {[%clk 0:02:13]}  Qxd5 {[%clk 0:02:48]} 10. Nd2 {[%clk 0:02:08]}  Qh5 {[%clk 0:02:33]} 11. Qc2 {[%clk 0:01:56]}  Nd4 {[%clk 0:02:28]} 12. Qd1 {[%clk 0:01:51]}  Nxe2+ {[%clk 0:02:25]} 13. Kh1 {[%clk 0:01:51]}  Bg4 {[%clk 0:02:06]} 14. f3 {[%clk 0:01:42]}  Nxg3+ {[%clk 0:02:05]} 15. Kg1 {[%clk 0:01:43]}  Nxf1 {[%clk 0:01:42]} 16. fxg4 {[%clk 0:01:42]}  Ne3 {[%clk 0:01:35]} 17. gxh5 {[%clk 0:01:37]}  Nxd1 {[%clk 0:01:33]} 18. h6 {[%clk 0:01:36]}  Bxh6 {[%clk 0:01:26]} 19. Nc4 {[%clk 0:01:34]}  Bxc1 {[%clk 0:01:19]} 20. Rxc1 {[%clk 0:01:35]}  b5 {[%clk 0:01:16]} 21. Ne5 {[%clk 0:01:19]}  Nxb2 {[%clk 0:01:13]} 22. Bxa8 {[%clk 0:01:15]}  Rxa8 {[%clk 0:01:13]} 23. Rxc5 {[%clk 0:01:15]}  a6 {[%clk 0:01:09]} 24. Rc7 {[%clk 0:01:15]}  Kf8 {[%clk 0:00:59]} 25. Kf2 {[%clk 0:01:09]}  f6 {[%clk 0:00:58]} 26. Nc6 {[%clk 0:01:06]}  Nxd3+ {[%clk 0:00:55]} 27. Ke3 {[%clk 0:01:00]}  Ne5 {[%clk 0:00:48]} 28. Nxe5 {[%clk 0:00:58]}  fxe5 {[%clk 0:00:48]} 29. Ke4 {[%clk 0:00:59]}  Rd8 {[%clk 0:00:41]} 30. Rc6 {[%clk 0:00:51]}  Rd6 {[%clk 0:00:40]} 31. Rc8+ {[%clk 0:00:50]}  Kf7 {[%clk 0:00:40]} 32. Kxe5 {[%clk 0:00:51]}  Rd2 {[%clk 0:00:39]} 33. a3 {[%clk 0:00:51]}  Rxh2 {[%clk 0:00:38]} 34. Rc6 {[%clk 0:00:50]}  Re2+ {[%clk 0:00:38]} 35. Kd5 {[%clk 0:00:49]}  Rd2+ {[%clk 0:00:38]} 36. Ke5 {[%clk 0:00:49]}  Rd6 {[%clk 0:00:38]} 0-1


[Site "https://www.chess.com"]

[Event "Titled Tuesday Blitz August 09 Early 2022"]
[White "Orlov, Georgi"]
[Black "Pinero Rodriguez, Carlos Jose"]
[WhiteFideId "2011271"]
[BlackFideId "3901726"]
[WhiteElo "2597"]
[BlackElo "2053"]
[Result "0-1"]
[Round "06"]
[TimeControl "180+1"]
[Date "2022.08.09"]
[WhiteClock "0:00:11"]
[BlackClock "0:01:03"]

1. d4 {[%clk 0:03:00]}  d5 {[%clk 0:02:55]} 2. Nf3 {[%clk 0:03:01]}  Nf6 {[%clk 0:02:54]} 3. c4 {[%clk 0:03:01]}  c6 {[%clk 0:02:54]} 4. Nc3 {[%clk 0:03:00]}  e6 {[%clk 0:02:53]} 5. e3 {[%clk 0:03:00]}  Bb4 {[%clk 0:02:52]} 6. Bd3 {[%clk 0:02:59]}  h6 {[%clk 0:02:51]} 7. O-O {[%clk 0:02:58]}  O-O {[%clk 0:02:51]} 8. Qc2 {[%clk 0:02:57]}  Re8 {[%clk 0:02:50]} 9. Bd2 {[%clk 0:02:42]}  Bf8 {[%clk 0:02:49]} 10. e4 {[%clk 0:02:40]}  Nxe4 {[%clk 0:02:49]} 11. Nxe4 {[%clk 0:02:40]}  dxe4 {[%clk 0:02:50]} 12. Bxe4 {[%clk 0:02:40]}  Nd7 {[%clk 0:02:50]} 13. Rad1 {[%clk 0:02:39]}  Nf6 {[%clk 0:02:50]} 14. Bd3 {[%clk 0:02:38]}  c5 {[%clk 0:02:47]} 15. dxc5 {[%clk 0:02:33]}  Bd7 {[%clk 0:02:40]} 16. b4 {[%clk 0:02:31]}  a5 {[%clk 0:02:39]} 17. a3 {[%clk 0:02:30]}  axb4 {[%clk 0:02:38]} 18. axb4 {[%clk 0:02:17]}  Ba4 {[%clk 0:02:38]} 19. Qb1 {[%clk 0:02:17]}  Bxd1 {[%clk 0:02:38]} 20. Rxd1 {[%clk 0:02:18]}  Qc7 {[%clk 0:02:34]} 21. Bc3 {[%clk 0:02:17]}  Be7 {[%clk 0:02:28]} 22. Be5 {[%clk 0:02:09]}  Qc6 {[%clk 0:02:24]} 23. Nd4 {[%clk 0:02:06]}  Qa4 {[%clk 0:02:23]} 24. Nb5 {[%clk 0:02:04]}  Red8 {[%clk 0:02:10]} 25. Nd6 {[%clk 0:01:43]}  Bxd6 {[%clk 0:01:54]} 26. cxd6 {[%clk 0:01:42]}  Qa2 {[%clk 0:01:54]} 27. Bxf6 {[%clk 0:01:30]}  Qxb1 {[%clk 0:01:48]} 28. Bxb1 {[%clk 0:01:27]}  gxf6 {[%clk 0:01:48]} 29. c5 {[%clk 0:01:04]}  Ra4 {[%clk 0:01:41]} 30. b5 {[%clk 0:01:02]}  Rc4 {[%clk 0:01:39]} 31. c6 {[%clk 0:00:34]}  bxc6 {[%clk 0:01:40]} 32. b6 {[%clk 0:00:34]}  Rb4 {[%clk 0:01:38]} 33. g3 {[%clk 0:00:29]}  Rxb6 {[%clk 0:01:34]} 34. Be4 {[%clk 0:00:28]}  f5 {[%clk 0:01:33]} 35. Bf3 {[%clk 0:00:28]}  c5 {[%clk 0:01:32]} 36. d7 {[%clk 0:00:28]}  Kf8 {[%clk 0:01:28]} 37. Rc1 {[%clk 0:00:26]}  Rb5 {[%clk 0:01:27]} 38. Bc6 {[%clk 0:00:25]}  Ra5 {[%clk 0:01:27]} 39. Rc4 {[%clk 0:00:21]}  Ke7 {[%clk 0:01:26]} 40. Ba4 {[%clk 0:00:20]}  Kd6 {[%clk 0:01:24]} 41. Kg2 {[%clk 0:00:19]}  Kd5 {[%clk 0:01:24]} 42. Bb3 {[%clk 0:00:19]}  Kc6 {[%clk 0:01:15]} 43. Ba4+ {[%clk 0:00:18]}  Rxa4 {[%clk 0:01:08]} 44. Rxa4 {[%clk 0:00:18]}  Rxd7 {[%clk 0:01:08]} 45. Rh4 {[%clk 0:00:12]}  Kb5 {[%clk 0:01:07]} 46. Rxh6 {[%clk 0:00:13]}  c4 {[%clk 0:01:07]} 47. Rh8 {[%clk 0:00:13]}  Rc7 {[%clk 0:01:06]} 48. Rb8+ {[%clk 0:00:13]}  Ka4 {[%clk 0:01:03]} 49. Kf3 {[%clk 0:00:12]}  c3 {[%clk 0:01:03]} 50. Rb1 {[%clk 0:00:10]}  c2 {[%clk 0:01:03]} 51. Rc1 {[%clk 0:00:11]}  Kb3 {[%clk 0:01:03]} 52. Ke2 {[%clk 0:00:11]}  Rd7 {[%clk 0:01:03]} 0-1


[Site "https://www.chess.com"]

[Event "Titled Tuesday Blitz August 09 Early 2022"]
[White "Ovezdurdyyeva, Jemal"]
[Black "Reprintsev, Alexander"]
[WhiteFideId "14001888"]
[BlackFideId "14100541"]
[WhiteElo "1946"]
[BlackElo "2108"]
[Result "0-1"]
[Round "06"]
[TimeControl "180+1"]
[Date "2022.08.09"]
[WhiteClock "0:00:01"]
[BlackClock "0:00:08"]

1. e4 {[%clk 0:03:00]}  d5 {[%clk 0:02:57]} 2. exd5 {[%clk 0:02:59]}  Qxd5 {[%clk 0:02:57]} 3. Nc3 {[%clk 0:03:00]}  Qa5 {[%clk 0:02:57]} 4. d4 {[%clk 0:02:59]}  Nf6 {[%clk 0:02:57]} 5. Nf3 {[%clk 0:02:59]}  Nc6 {[%clk 0:02:57]} 6. Bb5 {[%clk 0:02:46]}  Ne4 {[%clk 0:02:57]} 7. Bxc6+ {[%clk 0:02:32]}  bxc6 {[%clk 0:02:56]} 8. O-O {[%clk 0:02:32]}  Nxc3 {[%clk 0:02:56]} 9. bxc3 {[%clk 0:02:33]}  Bf5 {[%clk 0:02:56]} 10. Bd2 {[%clk 0:02:28]}  e6 {[%clk 0:02:55]} 11. Ne5 {[%clk 0:02:25]}  Bd6 {[%clk 0:02:43]} 12. Nxc6 {[%clk 0:02:16]}  Qa4 {[%clk 0:02:37]} 13. Nb4 {[%clk 0:02:04]}  O-O {[%clk 0:02:26]} 14. Re1 {[%clk 0:01:55]}  Rab8 {[%clk 0:02:25]} 15. h3 {[%clk 0:01:54]}  Rfd8 {[%clk 0:02:19]} 16. Nd3 {[%clk 0:01:52]}  h6 {[%clk 0:02:04]} 17. Qc1 {[%clk 0:01:20]}  Ba3 {[%clk 0:02:00]} 18. Qd1 {[%clk 0:01:18]}  c5 {[%clk 0:01:59]} 19. Be3 {[%clk 0:01:12]}  c4 {[%clk 0:01:56]} 20. Ne5 {[%clk 0:01:12]}  Bb2 {[%clk 0:01:46]} 21. Qh5 {[%clk 0:00:58]}  Bxa1 {[%clk 0:01:33]} 22. Qxf7+ {[%clk 0:00:57]}  Kh8 {[%clk 0:01:33]} 23. Rxa1 {[%clk 0:00:57]}  Qe8 {[%clk 0:01:28]} 24. Qxa7 {[%clk 0:00:55]}  Ra8 {[%clk 0:01:28]} 25. Qc5 {[%clk 0:00:48]}  Rdc8 {[%clk 0:01:27]} 26. Qb4 {[%clk 0:00:45]}  Bxc2 {[%clk 0:01:24]} 27. Qb2 {[%clk 0:00:38]}  Be4 {[%clk 0:01:18]} 28. Qd2 {[%clk 0:00:38]}  Bd5 {[%clk 0:01:16]} 29. a4 {[%clk 0:00:28]}  Ra7 {[%clk 0:01:14]} 30. Qc2 {[%clk 0:00:19]}  Kg8 {[%clk 0:01:07]} 31. Ng4 {[%clk 0:00:17]}  Qh5 {[%clk 0:00:59]} 32. Bxh6 {[%clk 0:00:16]}  Qf5 {[%clk 0:00:58]} 33. Qxf5 {[%clk 0:00:14]}  exf5 {[%clk 0:00:58]} 34. Ne3 {[%clk 0:00:14]}  Bc6 {[%clk 0:00:43]} 35. Bf4 {[%clk 0:00:13]}  Rxa4 {[%clk 0:00:42]} 36. Rb1 {[%clk 0:00:12]}  Be4 {[%clk 0:00:41]} 37. Rb5 {[%clk 0:00:09]}  g6 {[%clk 0:00:36]} 38. d5 {[%clk 0:00:07]}  Ra3 {[%clk 0:00:29]} 39. d6 {[%clk 0:00:08]}  Rxc3 {[%clk 0:00:28]} 40. d7 {[%clk 0:00:08]}  Rd8 {[%clk 0:00:28]} 41. Rb7 {[%clk 0:00:06]}  Rd3 {[%clk 0:00:27]} 42. Nxc4 {[%clk 0:00:06]}  R3xd7 {[%clk 0:00:23]} 43. Rb6 {[%clk 0:00:06]}  Kh7 {[%clk 0:00:18]} 44. Ne5 {[%clk 0:00:07]}  Rg7 {[%clk 0:00:17]} 45. h4 {[%clk 0:00:06]}  Rd1+ {[%clk 0:00:15]} 46. Kh2 {[%clk 0:00:06]}  Rf1 {[%clk 0:00:15]} 47. f3 {[%clk 0:00:06]}  Bc2 {[%clk 0:00:15]} 48. h5 {[%clk 0:00:06]}  gxh5 {[%clk 0:00:14]} 49. Rh6+ {[%clk 0:00:05]}  Kg8 {[%clk 0:00:14]} 50. Rxh5 {[%clk 0:00:05]}  Rf2 {[%clk 0:00:14]} 51. Bg3 {[%clk 0:00:04]}  Re2 {[%clk 0:00:14]} 52. Rh6 {[%clk 0:00:04]}  Rxg3 {[%clk 0:00:14]} 53. Kxg3 {[%clk 0:00:04]}  Rxe5 {[%clk 0:00:14]} 54. Kf4 {[%clk 0:00:05]}  Ra5 {[%clk 0:00:14]} 55. g3 {[%clk 0:00:04]}  Kg7 {[%clk 0:00:14]} 56. Rb6 {[%clk 0:00:04]}  Ra4+ {[%clk 0:00:13]} 57. Kg5 {[%clk 0:00:04]}  Ra5 {[%clk 0:00:13]} 58. Rb7+ {[%clk 0:00:04]}  Kf8 {[%clk 0:00:14]} 59. g4 {[%clk 0:00:04]}  fxg4+ {[%clk 0:00:13]} 60. Kxg4 {[%clk 0:00:05]}  Bd1 {[%clk 0:00:12]} 61. Rd7 {[%clk 0:00:03]}  Be2 {[%clk 0:00:09]} 62. Rd2 {[%clk 0:00:03]}  Ba6 {[%clk 0:00:09]} 63. f4 {[%clk 0:00:03]}  Bc8+ {[%clk 0:00:09]} 64. Kg3 {[%clk 0:00:03]}  Ke7 {[%clk 0:00:09]} 65. Rc2 {[%clk 0:00:03]}  Bd7 {[%clk 0:00:09]} 66. Rb2 {[%clk 0:00:03]}  Ra3+ {[%clk 0:00:08]} 67. Kh4 {[%clk 0:00:01]}  Rf3 {[%clk 0:00:08]} 68. Kg5 {[%clk 0:00:01]}  Rg3+ {[%clk 0:00:08]} 69. Kh4 {[%clk 0:00:01]}  Rg4+ {[%clk 0:00:09]} 70. Kh5 {[%clk 0:00:02]}  Rxf4 {[%clk 0:00:09]} 71. Re2+ {[%clk 0:00:02]}  Be6 {[%clk 0:00:09]} 72. Kg5 {[%clk 0:00:02]}  Rg4+ {[%clk 0:00:08]} 73. Kh5 {[%clk 0:00:02]}  Rg1 {[%clk 0:00:09]} 74. Re3 {[%clk 0:00:01]}  Kf6 {[%clk 0:00:09]} 75. Kh4 {[%clk 0:00:01]}  Bf5 {[%clk 0:00:08]} 0-1


[Site "https://www.chess.com"]

[Event "Titled Tuesday Blitz August 09 Early 2022"]
[White "Petrova, Irina"]
[Black "Leschinsky, Gary"]
[WhiteFideId "14124122"]
[BlackFideId "30951321"]
[WhiteElo "2021"]
[BlackElo "1809"]
[Result "1-0"]
[Round "06"]
[TimeControl "180+1"]
[Date "2022.08.09"]
[WhiteClock "0:01:29"]
[BlackClock "0:00:51"]

1. e4 {[%clk 0:03:00]}  c5 {[%clk 0:03:00]} 2. Nf3 {[%clk 0:03:00]}  e6 {[%clk 0:03:00]} 3. b3 {[%clk 0:03:00]}  d6 {[%clk 0:02:57]} 4. Bd3 {[%clk 0:02:58]}  Nc6 {[%clk 0:02:58]} 5. O-O {[%clk 0:02:57]}  Nf6 {[%clk 0:02:58]} 6. Re1 {[%clk 0:02:56]}  e5 {[%clk 0:02:57]} 7. Bb2 {[%clk 0:02:56]}  Be7 {[%clk 0:02:57]} 8. Bf1 {[%clk 0:02:56]}  O-O {[%clk 0:02:57]} 9. c3 {[%clk 0:02:57]}  Re8 {[%clk 0:02:49]} 10. d4 {[%clk 0:02:54]}  Bg4 {[%clk 0:02:48]} 11. d5 {[%clk 0:02:53]}  Nb8 {[%clk 0:02:47]} 12. h3 {[%clk 0:02:54]}  Bxf3 {[%clk 0:02:47]} 13. Qxf3 {[%clk 0:02:55]}  Nbd7 {[%clk 0:02:43]} 14. Nd2 {[%clk 0:02:55]}  a6 {[%clk 0:02:41]} 15. a4 {[%clk 0:02:54]}  Rf8 {[%clk 0:02:35]} 16. a5 {[%clk 0:02:52]}  g6 {[%clk 0:02:33]} 17. Nc4 {[%clk 0:02:51]}  Ne8 {[%clk 0:02:31]} 18. Qg3 {[%clk 0:02:47]}  Ng7 {[%clk 0:02:30]} 19. f4 {[%clk 0:02:41]}  Bh4 {[%clk 0:02:28]} 20. Qf3 {[%clk 0:02:34]}  Bxe1 {[%clk 0:02:28]} 21. Rxe1 {[%clk 0:02:35]}  Qe7 {[%clk 0:02:22]} 22. f5 {[%clk 0:02:28]}  Rfb8 {[%clk 0:02:14]} 23. Bd3 {[%clk 0:02:11]}  b5 {[%clk 0:02:12]} 24. axb6 {[%clk 0:02:11]}  Nxb6 {[%clk 0:02:13]} 25. f6 {[%clk 0:02:10]}  Qd8 {[%clk 0:02:10]} 26. fxg7 {[%clk 0:02:09]}  Nxc4 {[%clk 0:02:07]} 27. Bxc4 {[%clk 0:02:10]}  Kxg7 {[%clk 0:02:06]} 28. Rf1 {[%clk 0:02:10]}  Qe7 {[%clk 0:02:06]} 29. Bc1 {[%clk 0:02:09]}  f6 {[%clk 0:02:06]} 30. Qe3 {[%clk 0:02:07]}  g5 {[%clk 0:02:06]} 31. Qf3 {[%clk 0:01:55]}  a5 {[%clk 0:02:02]} 32. h4 {[%clk 0:01:52]}  h6 {[%clk 0:02:00]} 33. Qf5 {[%clk 0:01:47]}  a4 {[%clk 0:01:56]} 34. bxa4 {[%clk 0:01:32]}  Rxa4 {[%clk 0:01:54]} 35. Be2 {[%clk 0:01:32]}  Qf7 {[%clk 0:00:56]} 36. hxg5 {[%clk 0:01:31]}  hxg5 {[%clk 0:00:52]} 37. Bxg5 {[%clk 0:01:29]}  fxg5 {[%clk 0:00:51]} 38. Qxf7+ {[%clk 0:01:29]} 1-0


[Site "https://www.chess.com"]

[Event "Titled Tuesday Blitz August 09 Early 2022"]
[White "Piesik, Piotr"]
[Black "Kukreja, Sankalp"]
[WhiteFideId "1136194"]
[BlackFideId "45027676"]
[WhiteElo "2221"]
[BlackElo "2004"]
[Result "1-0"]
[Round "06"]
[TimeControl "180+1"]
[Date "2022.08.09"]
[WhiteClock "0:01:23"]
[BlackClock "0:01:13"]

1. Nf3 {[%clk 0:03:00]}  d5 {[%clk 0:03:00]} 2. g3 {[%clk 0:03:01]}  Nf6 {[%clk 0:03:00]} 3. Bg2 {[%clk 0:03:01]}  c6 {[%clk 0:03:01]} 4. O-O {[%clk 0:03:01]}  Bf5 {[%clk 0:03:01]} 5. d3 {[%clk 0:03:02]}  e6 {[%clk 0:03:02]} 6. Nbd2 {[%clk 0:03:03]}  h6 {[%clk 0:03:02]} 7. Qe1 {[%clk 0:03:03]}  Be7 {[%clk 0:03:02]} 8. e4 {[%clk 0:03:03]}  dxe4 {[%clk 0:03:03]} 9. dxe4 {[%clk 0:03:04]}  Bh7 {[%clk 0:02:54]} 10. Qe2 {[%clk 0:03:04]}  O-O {[%clk 0:02:54]} 11. a4 {[%clk 0:03:04]}  Nbd7 {[%clk 0:02:52]} 12. b3 {[%clk 0:03:04]}  Re8 {[%clk 0:02:47]} 13. Bb2 {[%clk 0:03:03]}  a5 {[%clk 0:02:44]} 14. Rfd1 {[%clk 0:03:03]}  Qc7 {[%clk 0:02:44]} 15. Ne1 {[%clk 0:03:03]}  Rad8 {[%clk 0:02:44]} 16. Nd3 {[%clk 0:03:01]}  Nc5 {[%clk 0:02:42]} 17. Nxc5 {[%clk 0:02:53]}  Bxc5 {[%clk 0:02:43]} 18. Nc4 {[%clk 0:02:52]}  e5 {[%clk 0:02:24]} 19. Rxd8 {[%clk 0:02:51]}  Qxd8 {[%clk 0:02:25]} 20. Nxe5 {[%clk 0:02:45]}  Bd4 {[%clk 0:02:18]} 21. Rd1 {[%clk 0:02:44]}  c5 {[%clk 0:02:18]} 22. Bxd4 {[%clk 0:02:20]}  cxd4 {[%clk 0:02:17]} 23. f4 {[%clk 0:02:20]}  Qb6 {[%clk 0:02:14]} 24. Kh1 {[%clk 0:02:19]}  Rc8 {[%clk 0:02:08]} 25. Nc4 {[%clk 0:02:18]}  Qc5 {[%clk 0:02:06]} 26. e5 {[%clk 0:02:18]}  Nd5 {[%clk 0:02:06]} 27. Bxd5 {[%clk 0:02:11]}  Qxd5+ {[%clk 0:02:06]} 28. Kg1 {[%clk 0:02:11]}  Be4 {[%clk 0:02:00]} 29. Nb6 {[%clk 0:02:09]}  Rxc2 {[%clk 0:01:49]} 30. Nxd5 {[%clk 0:01:48]}  Rxe2 {[%clk 0:01:47]} 31. Rxd4 {[%clk 0:01:42]}  Bc2 {[%clk 0:01:40]} 32. b4 {[%clk 0:01:27]}  axb4 {[%clk 0:01:16]} 33. Rxb4 {[%clk 0:01:27]}  Kh7 {[%clk 0:01:14]} 34. a5 {[%clk 0:01:24]}  Be4 {[%clk 0:01:13]} 35. Nc3 {[%clk 0:01:23]}  Bc6 {[%clk 0:01:13]} 36. Nxe2 {[%clk 0:01:23]} 1-0


[Site "https://www.chess.com"]

[Event "Titled Tuesday Blitz August 09 Early 2022"]
[White "Ponce Cano, Adrian"]
[Black "Fernandez Siles, Luis"]
[WhiteFideId "22296913"]
[BlackFideId "2209420"]
[WhiteElo "2261"]
[BlackElo "2211"]
[Result "1-0"]
[Round "06"]
[TimeControl "180+1"]
[Date "2022.08.09"]
[WhiteClock "0:00:10"]
[BlackClock "0:00:05"]

1. e4 {[%clk 0:01:56]}  c5 {[%clk 0:02:57]} 2. Nf3 {[%clk 0:01:56]}  Nc6 {[%clk 0:02:57]} 3. c3 {[%clk 0:01:57]}  d5 {[%clk 0:02:51]} 4. exd5 {[%clk 0:01:58]}  Qxd5 {[%clk 0:02:51]} 5. Na3 {[%clk 0:01:57]}  Bg4 {[%clk 0:02:47]} 6. Be2 {[%clk 0:01:57]}  e6 {[%clk 0:02:44]} 7. O-O {[%clk 0:01:56]}  Nf6 {[%clk 0:02:44]} 8. Nb5 {[%clk 0:01:56]}  Rc8 {[%clk 0:02:38]} 9. d4 {[%clk 0:01:56]}  cxd4 {[%clk 0:02:36]} 10. Nbxd4 {[%clk 0:01:56]}  Nxd4 {[%clk 0:02:35]} 11. Nxd4 {[%clk 0:01:56]}  h5 {[%clk 0:02:13]} 12. f3 {[%clk 0:01:40]}  Bd6 {[%clk 0:01:56]} 13. fxg4 {[%clk 0:01:13]}  hxg4 {[%clk 0:01:48]} 14. g3 {[%clk 0:00:55]}  Qh5 {[%clk 0:01:44]} 15. Bb5+ {[%clk 0:00:37]}  Ke7 {[%clk 0:01:36]} 16. Qe2 {[%clk 0:00:33]}  Ne4 {[%clk 0:00:53]} 17. Bf4 {[%clk 0:00:24]}  Bc5 {[%clk 0:00:38]} 18. Bd3 {[%clk 0:00:15]}  Ng5 {[%clk 0:00:25]} 19. Bxg5+ {[%clk 0:00:14]}  Qxg5 {[%clk 0:00:26]} 20. Rae1 {[%clk 0:00:13]}  Rh3 {[%clk 0:00:24]} 21. Qf2 {[%clk 0:00:13]}  f6 {[%clk 0:00:09]} 22. Rxe6+ {[%clk 0:00:11]}  Kf8 {[%clk 0:00:10]} 23. Re3 {[%clk 0:00:10]}  Rd8 {[%clk 0:00:07]} 24. Ne6+ {[%clk 0:00:10]}  Kf7 {[%clk 0:00:05]} 25. Nxg5+ {[%clk 0:00:10]} 1-0


[Site "https://www.chess.com"]